[Event "Elitserien 2019/2020, round 7-9"]
[Site "Elite stadshotellet, Kungsgatan 6, Vaxjo, Sweden"]
[Date "2020.10.18"]
[Round "3.4"]
[White "Kenneskog, Theodor"]
[Black "Mauritsson, Sebastian"]
[Result "0-1"]
[TimeControl "90 minutes for 40 moves + 30 minutes for the rest of the game + 30 seconds per move from move one."]
[WhiteTitle "FM"]
[BlackTitle "FM"]
[WhiteFideId "1715011"]
[BlackFideId "1707892"]
[WhiteElo "2302"]
[BlackElo "2362"]

1. d4 {[%clk 01:30:57]} {[%emt 00:00:02]} d5 {[%clk 01:30:55]} {[%emt
00:00:06]} 2. c4 {[%clk 01:31:23]} {[%emt 00:00:04]} c6 {[%clk 01:31:22]}
{[%emt 00:00:04]} 3. Nf3 {[%clk 01:31:48]} {[%emt 00:00:05]} Nf6 {[%clk
01:31:48]} {[%emt 00:00:04]} 4. e3 {[%clk 01:32:15]} {[%emt 00:00:04]} Bg4
{[%clk 01:32:03]} {[%emt 00:00:14]} 5. Nc3 {[%clk 01:32:32]} {[%emt 00:00:12]}
e6 {[%clk 01:32:22]} {[%emt 00:00:11]} 6. h3 {[%clk 01:30:44]} {[%emt
00:02:18]} Bh5 {[%clk 01:32:47]} {[%emt 00:00:05]} 7. g4 {[%clk 01:28:20]}
{[%emt 00:02:54]} Bg6 {[%clk 01:33:15]} {[%emt 00:00:02]} 8. Ne5 {[%clk
01:28:45]} {[%emt 00:00:05]} Nbd7 {[%clk 01:33:40]} {[%emt 00:00:05]} 9. Nxg6
{[%clk 01:29:11]} {[%emt 00:00:05]} hxg6 {[%clk 01:34:05]} {[%emt 00:00:04]} 10.
Bd2 {[%clk 01:26:54]} {[%emt 00:02:46]} Bb4 {[%clk 01:33:40]} {[%emt 00:00:56]}
11. cxd5 {[%clk 01:23:51]} {[%emt 00:03:33]} Nxd5 {[%clk 01:24:58]} {[%emt
00:09:12]} 12. Bd3 {[%clk 01:16:51]} {[%emt 00:07:30]} Qe7 {[%clk 01:13:00]}
{[%emt 00:12:29]} 13. a3 {[%clk 00:59:54]} {[%emt 00:17:26]} Bd6 {[%clk
01:10:51]} {[%emt 00:02:39]} 14. Qf3 {[%clk 00:58:18]} {[%emt 00:02:07]} g5
{[%clk 01:09:06]} {[%emt 00:02:16]} 15. Rc1 {[%clk 00:54:54]} {[%emt 00:03:53]}
Kf8 {[%clk 01:00:39]} {[%emt 00:08:57]} 16. O-O {[%clk 00:40:20]} {[%emt
00:15:04]} Re8 {[%clk 00:56:32]} {[%emt 00:04:37]} 17. Ne4 {[%clk 00:31:22]}
{[%emt 00:09:28]} Bb8 {[%clk 00:53:45]} {[%emt 00:03:18]} 18. b4 {[%clk
00:31:23]} {[%emt 00:00:29]} Kg8 {[%clk 00:39:53]} {[%emt 00:14:23]} 19. b5
{[%clk 00:27:56]} {[%emt 00:03:57]} cxb5 {[%clk 00:30:54]} {[%emt 00:09:29]} 20.
Bxb5 {[%clk 00:27:58]} {[%emt 00:00:28]} Rd8 {[%clk 00:31:05]} {[%emt
00:00:19]} 21. a4 {[%clk 00:22:13]} {[%emt 00:06:14]} Nf8 {[%clk 00:28:15]}
{[%emt 00:03:20]} 22. Rc2 {[%clk 00:15:28]} {[%emt 00:07:15]} Ng6 {[%clk
00:27:16]} {[%emt 00:01:30]} 23. Rfc1 {[%clk 00:15:56]} {[%emt 00:00:01]} Nh4
{[%clk 00:23:36]} {[%emt 00:04:10]} 24. Qh1 {[%clk 00:14:21]} {[%emt 00:02:05]}
f5 {[%clk 00:22:24]} {[%emt 00:01:42]} 25. gxf5 {[%clk 00:14:23]} {[%emt
00:00:28]} exf5 {[%clk 00:22:29]} {[%emt 00:00:26]} 26. Nc3 {[%clk 00:13:45]}
{[%emt 00:01:07]} Nxc3 {[%clk 00:17:06]} {[%emt 00:05:53]} 27. Rxc3 {[%clk
00:13:17]} {[%emt 00:00:58]} g4 {[%clk 00:13:40]} {[%emt 00:03:56]} 28. Bc4+
{[%clk 00:12:26]} {[%emt 00:01:20]} Kf8 {[%clk 00:14:03]} {[%emt 00:00:08]} 29.
hxg4 {[%clk 00:12:21]} {[%emt 00:00:36]} fxg4 {[%clk 00:12:11]} {[%emt
00:02:22]} 30. Kf1 {[%clk 00:12:46]} {[%emt 00:00:05]} g6 {[%clk 00:07:47]}
{[%emt 00:04:54]} 31. Be2 {[%clk 00:09:48]} {[%emt 00:03:28]} g3 {[%clk
00:06:46]} {[%emt 00:01:31]} 32. Bf3 {[%clk 00:03:41]} {[%emt 00:06:36]} Kg7
{[%clk 00:05:07]} {[%emt 00:02:10]} 33. Rb3 {[%clk 00:02:38]} {[%emt 00:01:33]}
b6 {[%clk 00:04:26]} {[%emt 00:01:10]} 34. e4 {[%clk 00:01:25]} {[%emt
00:01:43]} Nxf3 {[%clk 00:04:14]} {[%emt 00:00:43]} 35. Qxf3 {[%clk 00:01:45]}
{[%emt 00:00:10]} Rdf8 {[%clk 00:04:25]} {[%emt 00:00:19]} 36. Qc3 {[%clk
00:00:54]} {[%emt 00:01:21]} Rh1+ {[%clk 00:03:05]} {[%emt 00:01:50]} 37. Ke2
{[%clk 00:00:54]} {[%emt 00:00:30]} Qxe4+ {[%clk 00:03:24]} {[%emt 00:00:11]}
0-1

[Event "Elitserien 2019/2020, round 7-9"]
[Site "Elite stadshotellet, Kungsgatan 6, Vaxjo, Sweden"]
[Date "2020.10.18"]
[Round "3.5"]
[White "Kucuksari, Kaan"]
[Black "Bator, Robert"]
[Result "0-1"]
[TimeControl "90 minutes for 40 moves + 30 minutes for the rest of the game + 30 seconds per move from move one."]
[WhiteTitle "FM"]
[BlackTitle "IM"]
[WhiteFideId "6380166"]
[BlackFideId "1700405"]
[WhiteElo "2308"]
[BlackElo "2365"]

1. d4 {[%clk 01:30:58]} {[%emt 00:00:02]} d5 {[%clk 01:30:14]} {[%emt
00:00:46]} 2. Nf3 {[%clk 01:31:22]} {[%emt 00:00:06]} Nf6 {[%clk 01:27:56]}
{[%emt 00:02:48]} 3. c4 {[%clk 01:31:46]} {[%emt 00:00:07]} c6 {[%clk
01:28:07]} {[%emt 00:00:19]} 4. Qc2 {[%clk 01:32:05]} {[%emt 00:00:11]} dxc4
{[%clk 01:26:26]} {[%emt 00:02:11]} 5. Qxc4 {[%clk 01:32:27]} {[%emt 00:00:09]}
Bf5 {[%clk 01:26:18]} {[%emt 00:00:37]} 6. g3 {[%clk 01:32:51]} {[%emt
00:00:07]} e6 {[%clk 01:19:15]} {[%emt 00:07:33]} 7. Bg2 {[%clk 01:33:14]}
{[%emt 00:00:07]} Be7 {[%clk 01:19:18]} {[%emt 00:00:27]} 8. O-O {[%clk
01:33:34]} {[%emt 00:00:10]} O-O {[%clk 01:19:36]} {[%emt 00:00:13]} 9. Rd1
{[%clk 01:31:10]} {[%emt 00:02:54]} Nbd7 {[%clk 01:19:11]} {[%emt 00:00:55]} 10.
Nc3 {[%clk 01:21:23]} {[%emt 00:10:17]} Bc2 {[%clk 01:18:52]} {[%emt 00:00:50]}
11. a4 {[%clk 01:19:53]} {[%emt 00:02:00]} Nb6 {[%clk 01:13:45]} {[%emt
00:05:36]} 12. Qa2 {[%clk 01:20:22]} Bxd1 {[%clk 01:14:00]} {[%emt 00:00:16]}
13. Nxd1 {[%clk 01:20:49]} {[%emt 00:00:02]} a5 {[%clk 01:13:21]} {[%emt
00:01:10]} 14. b3 {[%clk 01:20:54]} {[%emt 00:00:25]} Nbd5 {[%clk 01:12:21]}
{[%emt 00:01:29]} 15. Bb2 {[%clk 01:21:02]} {[%emt 00:00:22]} b5 {[%clk
01:09:08]} {[%emt 00:03:44]} 16. Rc1 {[%clk 01:20:52]} {[%emt 00:00:40]} Qb6
{[%clk 01:07:18]} {[%emt 00:02:20]} 17. Ne5 {[%clk 01:17:24]} {[%emt 00:03:59]}
Rfc8 {[%clk 01:04:20]} {[%emt 00:03:27]} 18. Qa1 {[%clk 01:08:20]} {[%emt
00:09:34]} Rab8 {[%clk 00:59:29]} {[%emt 00:05:20]} 19. e4 {[%clk 00:58:30]}
{[%emt 00:10:20]} Nb4 {[%clk 00:57:56]} {[%emt 00:02:03]} 20. Ne3 {[%clk
00:57:16]} {[%emt 00:01:42]} Bd6 {[%clk 00:47:06]} {[%emt 00:11:21]} 21. Rd1
{[%clk 00:47:15]} {[%emt 00:10:30]} Bxe5 {[%clk 00:44:49]} {[%emt 00:02:48]} 22.
dxe5 {[%clk 00:47:43]} {[%emt 00:00:03]} Ne8 {[%clk 00:44:58]} {[%emt
00:00:21]} 23. Bf1 {[%clk 00:44:46]} {[%emt 00:03:27]} Rd8 {[%clk 00:44:01]}
{[%emt 00:01:27]} 24. Bd4 {[%clk 00:44:41]} {[%emt 00:00:35]} c5 {[%clk
00:43:03]} {[%emt 00:01:28]} 25. Bc3 {[%clk 00:45:09]} {[%emt 00:00:01]} Rxd1
{[%clk 00:42:50]} {[%emt 00:00:43]} 26. Qxd1 {[%clk 00:43:11]} {[%emt
00:02:29]} Rd8 {[%clk 00:41:25]} {[%emt 00:01:55]} 27. Qa1 {[%clk 00:37:39]}
{[%emt 00:06:02]} Nc7 {[%clk 00:37:57]} {[%emt 00:03:57]} 28. h4 {[%clk
00:36:46]} {[%emt 00:01:23]} h6 {[%clk 00:35:39]} {[%emt 00:02:49]} 29. h5
{[%clk 00:34:57]} {[%emt 00:02:19]} Ra8 {[%clk 00:24:10]} {[%emt 00:11:59]} 30.
Ng4 {[%clk 00:24:22]} {[%emt 00:11:04]} Qc6 {[%clk 00:21:52]} {[%emt 00:02:49]}
31. Qe1 {[%clk 00:19:13]} {[%emt 00:05:39]} bxa4 {[%clk 00:16:41]} {[%emt
00:05:42]} 32. bxa4 {[%clk 00:19:14]} {[%emt 00:00:28]} Qxa4 {[%clk 00:13:52]}
{[%emt 00:03:18]} 33. Qe3 {[%clk 00:17:16]} {[%emt 00:02:28]} Qd1 {[%clk
00:12:28]} {[%emt 00:01:54]} 34. Nxh6+ {[%clk 00:10:34]} {[%emt 00:07:12]} gxh6
{[%clk 00:12:15]} {[%emt 00:00:42]} 35. Qxh6 {[%clk 00:11:01]} {[%emt
00:00:02]} Qg4 {[%clk 00:12:20]} {[%emt 00:00:26]} 36. Bd2 {[%clk 00:08:00]}
{[%emt 00:03:32]} Qg7 {[%clk 00:12:11]} {[%emt 00:00:39]} 37. Qf4 {[%clk
00:08:15]} {[%emt 00:00:15]} a4 {[%clk 00:09:32]} {[%emt 00:03:09]} 38. Qh4
{[%clk 00:06:15]} {[%emt 00:02:29]} a3 {[%clk 00:09:15]} {[%emt 00:00:47]} 39.
Bg5 {[%clk 00:06:44]} {[%emt 00:00:01]} Ne8 {[%clk 00:03:28]} {[%emt 00:06:17]}
40. Bf6 {[%clk 00:06:01]} {[%emt 00:01:13]} Nxf6 {[%clk 00:03:20]} {[%emt
00:00:39]} 41. exf6 {[%clk 00:06:30]} Qh6 {[%clk 00:03:04]} {[%emt 00:00:47]}
0-1

[Event "Elitserien 2019/2020, round 7-9"]
[Site "Elite stadshotellet, Kungsgatan 6, Vaxjo, Sweden"]
[Date "2020.10.18"]
[Round "3.6"]
[White "Trost, Edvin"]
[Black "Ahlander, Bjorn"]
[Result "0-1"]
[TimeControl "90 minutes for 40 moves + 30 minutes for the rest of the game + 30 seconds per move from move one."]
[WhiteTitle "CM"]
[BlackTitle "IM"]
[WhiteFideId "1729519"]
[BlackFideId "1700251"]
[WhiteElo "2111"]
[BlackElo "2418"]

1. d4 {[%clk 01:30:57]} {[%emt 00:00:02]} Nf6 {[%clk 01:30:42]} {[%emt
00:00:16]} 2. c4 {[%clk 01:31:15]} {[%emt 00:00:15]} e6 {[%clk 01:31:06]}
{[%emt 00:00:06]} 3. Nf3 {[%clk 01:31:40]} {[%emt 00:00:04]} Bb4+ {[%clk
01:30:56]} {[%emt 00:00:39]} 4. Bd2 {[%clk 01:31:42]} {[%emt 00:00:29]} a5
{[%clk 01:30:59]} {[%emt 00:00:27]} 5. g3 {[%clk 01:30:40]} {[%emt 00:01:34]}
d6 {[%clk 01:30:48]} {[%emt 00:00:40]} 6. Nc3 {[%clk 01:29:24]} {[%emt
00:01:46]} Nbd7 {[%clk 01:26:58]} {[%emt 00:04:20]} 7. Bg2 {[%clk 01:21:07]}
{[%emt 00:08:47]} e5 {[%clk 01:27:00]} {[%emt 00:00:27]} 8. a3 {[%clk
01:17:10]} {[%emt 00:04:28]} Bxc3 {[%clk 01:25:25]} {[%emt 00:02:05]} 9. Bxc3
{[%clk 01:17:33]} {[%emt 00:00:07]} Qe7 {[%clk 01:15:21]} {[%emt 00:10:32]} 10.
e3 {[%clk 01:09:05]} {[%emt 00:09:00]} Ne4 {[%clk 01:12:16]} {[%emt 00:03:35]}
11. Qc2 {[%clk 01:02:33]} {[%emt 00:07:01]} Nxc3 {[%clk 01:09:16]} {[%emt
00:03:30]} 12. Qxc3 {[%clk 01:02:46]} {[%emt 00:00:17]} exd4 {[%clk 01:08:18]}
{[%emt 00:01:28]} 13. Qxd4 {[%clk 00:58:18]} {[%emt 00:04:59]} O-O {[%clk
01:08:26]} {[%emt 00:00:21]} 14. b4 {[%clk 00:53:44]} {[%emt 00:05:05]} axb4
{[%clk 01:03:26]} {[%emt 00:05:30]} 15. axb4 {[%clk 00:53:51]} {[%emt
00:00:23]} c5 {[%clk 01:02:48]} {[%emt 00:01:07]} 16. bxc5 {[%clk 00:49:18]}
{[%emt 00:05:04]} dxc5 {[%clk 01:03:12]} {[%emt 00:00:06]} 17. Qc3 {[%clk
00:49:04]} {[%emt 00:00:44]} Rxa1+ {[%clk 01:03:23]} {[%emt 00:00:17]} 18. Qxa1
{[%clk 00:49:32]} {[%emt 00:00:04]} Qe4 {[%clk 01:03:19]} {[%emt 00:00:34]} 19.
Qc3 {[%clk 00:44:27]} {[%emt 00:05:36]} b5 {[%clk 00:36:06]} {[%emt 00:27:43]}
20. cxb5 {[%clk 00:21:01]} {[%emt 00:23:57]} Qb1+ {[%clk 00:35:59]} {[%emt
00:00:35]} 21. Kd2 {[%clk 00:21:18]} {[%emt 00:00:13]} Qxb5 {[%clk 00:35:01]}
{[%emt 00:01:28]} 22. Rd1 {[%clk 00:19:56]} {[%emt 00:01:52]} Nf6 {[%clk
00:33:54]} {[%emt 00:01:38]} 23. Ke1 {[%clk 00:15:49]} {[%emt 00:04:37]} Ba6
{[%clk 00:28:10]} {[%emt 00:06:13]} 24. Qc2 {[%clk 00:15:10]} {[%emt 00:01:10]}
Rb8 {[%clk 00:28:27]} {[%emt 00:00:12]} 25. Ne5 {[%clk 00:13:52]} {[%emt
00:01:49]} g6 {[%clk 00:20:28]} {[%emt 00:08:29]} 26. f4 {[%clk 00:11:46]}
{[%emt 00:02:37]} c4 {[%clk 00:13:55]} {[%emt 00:07:02]} 27. Kf2 {[%clk
00:10:36]} {[%emt 00:01:41]} c3 {[%clk 00:12:56]} {[%emt 00:01:27]} 28. Rd3
{[%clk 00:08:17]} {[%emt 00:02:51]} Ng4+ {[%clk 00:12:14]} {[%emt 00:01:12]} 29.
Kg1 {[%clk 00:06:59]} {[%emt 00:01:49]} Qb1+ {[%clk 00:08:54]} {[%emt
00:03:49]} 0-1

[Event "Elitserien 2019/2020, round 7-9"]
[Site "Elite stadshotellet, Kungsgatan 6, Vaxjo, Sweden"]
[Date "2020.10.18"]
[Round "3.7"]
[White "Jogstad, Martin"]
[Black "Crevatin, Leo"]
[Result "1/2-1/2"]
[TimeControl "90 minutes for 40 moves + 30 minutes for the rest of the game + 30 seconds per move from move one."]
[WhiteTitle "FM"]
[BlackTitle "CM"]
[WhiteFideId "1715364"]
[BlackFideId "1726307"]
[WhiteElo "2302"]
[BlackElo "2247"]

1. d4 {[%clk 01:30:47]} {[%emt 00:00:12]} d5 {[%clk 01:30:58]} {[%emt
00:00:02]} 2. c4 {[%clk 01:31:11]} {[%emt 00:00:07]} e6 {[%clk 01:31:24]}
{[%emt 00:00:04]} 3. Nf3 {[%clk 01:31:34]} {[%emt 00:00:07]} a6 {[%clk
01:31:50]} {[%emt 00:00:04]} 4. e3 {[%clk 01:31:59]} {[%emt 00:00:05]} Nf6
{[%clk 01:31:54]} {[%emt 00:00:26]} 5. b3 {[%clk 01:32:09]} {[%emt 00:00:20]}
b6 {[%clk 01:27:57]} {[%emt 00:04:26]} 6. Bd3 {[%clk 01:31:06]} {[%emt
00:01:33]} Bb7 {[%clk 01:28:02]} {[%emt 00:00:25]} 7. O-O {[%clk 01:30:56]}
{[%emt 00:00:38]} Nbd7 {[%clk 01:28:00]} {[%emt 00:00:33]} 8. Bb2 {[%clk
01:31:05]} {[%emt 00:00:21]} Bd6 {[%clk 01:25:20]} {[%emt 00:03:10]} 9. Nbd2
{[%clk 01:30:18]} {[%emt 00:01:18]} O-O {[%clk 01:24:46]} {[%emt 00:01:03]} 10.
Qe2 {[%clk 01:29:56]} {[%emt 00:00:52]} Ne4 {[%clk 01:20:32]} {[%emt 00:04:43]}
11. Rfd1 {[%clk 01:26:09]} {[%emt 00:04:17]} Qe7 {[%clk 01:16:15]} {[%emt
00:04:47]} 12. Rac1 {[%clk 01:20:51]} {[%emt 00:05:47]} Rfd8 {[%clk 01:12:18]}
{[%emt 00:04:28]} 13. Ne5 {[%clk 01:03:21]} {[%emt 00:18:00]} Nxd2 {[%clk
00:59:22]} {[%emt 00:13:24]} 14. Rxd2 {[%clk 00:51:17]} {[%emt 00:12:36]} Nxe5
{[%clk 00:48:30]} {[%emt 00:11:22]} 15. dxe5 {[%clk 00:51:25]} {[%emt
00:00:21]} Ba3 {[%clk 00:47:07]} {[%emt 00:01:53]} 16. cxd5 {[%clk 00:34:41]}
{[%emt 00:17:15]} Bxb2 {[%clk 00:43:34]} {[%emt 00:04:04]} 17. Rxb2 {[%clk
00:34:52]} {[%emt 00:00:18]} exd5 {[%clk 00:42:42]} {[%emt 00:01:22]} 18. Qc2
{[%clk 00:32:55]} {[%emt 00:02:27]} Qxe5 {[%clk 00:40:10]} {[%emt 00:03:03]} 19.
Rbb1 {[%clk 00:29:16]} {[%emt 00:04:09]} c5 {[%clk 00:39:27]} {[%emt 00:01:12]}
20. b4 {[%clk 00:25:23]} {[%emt 00:04:23]} c4 {[%clk 00:36:41]} {[%emt
00:03:17]} 21. Bxh7+ {[%clk 00:25:01]} {[%emt 00:00:51]} Kh8 {[%clk 00:36:46]}
{[%emt 00:00:25]} 22. Qf5 {[%clk 00:24:28]} {[%emt 00:01:03]} Qxf5 {[%clk
00:36:34]} {[%emt 00:00:43]} 23. Bxf5 {[%clk 00:24:55]} {[%emt 00:00:02]} g6
{[%clk 00:35:10]} {[%emt 00:01:54]} 24. Bg4 {[%clk 00:21:10]} {[%emt 00:04:15]}
b5 {[%clk 00:34:24]} {[%emt 00:01:16]} 25. Bf3 {[%clk 00:20:42]} {[%emt
00:00:58]} Rab8 {[%clk 00:28:15]} {[%emt 00:06:40]} 26. Rd1 {[%clk 00:15:43]}
{[%emt 00:05:28]} d4 {[%clk 00:28:31]} {[%emt 00:00:14]} 27. Rxd4 {[%clk
00:12:54]} {[%emt 00:03:18]} Rxd4 {[%clk 00:28:49]} {[%emt 00:00:13]} 28. exd4
{[%clk 00:13:23]} {[%emt 00:00:02]} Bxf3 {[%clk 00:29:11]} {[%emt 00:00:07]} 29.
gxf3 {[%clk 00:13:45]} {[%emt 00:00:07]} Rd8 {[%clk 00:29:30]} {[%emt
00:00:12]} 30. Rd1 {[%clk 00:13:35]} {[%emt 00:00:39]} c3 {[%clk 00:29:12]}
{[%emt 00:00:49]} 31. d5 {[%clk 00:12:03]} {[%emt 00:02:02]} c2 {[%clk
00:28:30]} {[%emt 00:01:12]} 32. Rc1 {[%clk 00:12:22]} {[%emt 00:00:10]} Rxd5
{[%clk 00:28:46]} {[%emt 00:00:14]} 33. Rxc2 {[%clk 00:12:45]} {[%emt
00:00:07]} Rd3 {[%clk 00:27:28]} {[%emt 00:01:47]} 34. Kg2 {[%clk 00:12:28]}
{[%emt 00:00:48]} Ra3 {[%clk 00:27:42]} {[%emt 00:00:16]} 35. Kg3 {[%clk
00:12:29]} {[%emt 00:00:29]} Kg7 {[%clk 00:27:39]} {[%emt 00:00:34]} 36. Kf4
{[%clk 00:11:53]} {[%emt 00:01:06]} Ra4 {[%clk 00:27:38]} {[%emt 00:00:32]} 37.
Rb2 {[%clk 00:12:15]} {[%emt 00:00:08]} a5 {[%clk 00:27:50]} {[%emt 00:00:18]}
38. Ke5 {[%clk 00:11:43]} {[%emt 00:01:02]} axb4 {[%clk 00:26:40]} {[%emt
00:01:40]} 39. Kd5 {[%clk 00:11:34]} {[%emt 00:00:38]} Ra3 {[%clk 00:25:58]}
{[%emt 00:01:13]} 40. Kc5 {[%clk 00:11:23]} {[%emt 00:00:40]} Rxf3 {[%clk
00:26:18]} {[%emt 00:00:09]} 41. Kxb5 {[%clk 00:25:52]} {[%emt 00:16:01]} Rf4
{[%clk 00:56:15]} {[%emt 00:00:34]} 42. h4 {[%clk 00:06:27]} {[%emt 00:19:55]}
f5 {[%clk 00:51:17]} {[%emt 00:05:28]} 43. Rxb4 {[%clk 00:06:44]} {[%emt
00:00:13]} Rxf2 {[%clk 00:51:43]} {[%emt 00:00:04]} 44. a4 {[%clk 00:07:10]}
{[%emt 00:00:04]} f4 {[%clk 00:50:26]} {[%emt 00:01:47]} 45. a5 {[%clk
00:06:42]} {[%emt 00:00:57]} f3 {[%clk 00:50:17]} {[%emt 00:00:39]} 46. Rb3
{[%clk 00:03:08]} {[%emt 00:04:04]} Kh6 {[%clk 00:46:20]} {[%emt 00:04:27]} 47.
a6 {[%clk 00:02:23]} {[%emt 00:01:15]} Kh5 {[%clk 00:45:58]} {[%emt 00:00:52]}
48. Kb6 {[%clk 00:00:38]} {[%emt 00:02:15]} Ra2 {[%clk 00:45:43]} {[%emt
00:00:44]} 49. Rxf3 {[%clk 00:00:42]} {[%emt 00:00:26]} Kxh4 {[%clk 00:45:32]}
{[%emt 00:00:41]} 50. Rf4+ {[%clk 00:00:35]} {[%emt 00:00:38]} Kg3 {[%clk
00:45:12]} {[%emt 00:00:46]} 51. Rf6 {[%clk 00:00:46]} {[%emt 00:00:22]} g5
{[%clk 00:45:09]} {[%emt 00:00:33]} 52. Rf5 {[%clk 00:01:15]} g4 {[%clk
00:41:15]} {[%emt 00:04:25]} 53. Ra5 {[%clk 00:01:38]} {[%emt 00:00:08]} Rb2+
{[%clk 00:41:43]} {[%emt 00:00:02]} 54. Kc7 {[%clk 00:02:00]} {[%emt 00:00:08]}
Rc2+ {[%clk 00:42:00]} {[%emt 00:00:13]} 55. Kd7 {[%clk 00:02:28]} {[%emt
00:00:02]} Rd2+ {[%clk 00:42:18]} {[%emt 00:00:12]} 56. Ke7 {[%clk 00:02:45]}
{[%emt 00:00:12]} Rc2 {[%clk 00:40:06]} {[%emt 00:02:42]} 57. Kd7 {[%clk
00:00:38]} {[%emt 00:02:37]} Rd2+ {[%clk 00:39:55]} {[%emt 00:00:41]} 58. Kc7
{[%clk 00:00:49]} {[%emt 00:00:19]} Rc2+ {[%clk 00:39:17]} {[%emt 00:01:08]} 59.
Kd7 {[%clk 00:01:10]} {[%emt 00:00:09]} 1/2-1/2

[Event "Elitserien 2019/2020, round 7-9"]
[Site "Elite stadshotellet, Kungsgatan 6, Vaxjo, Sweden"]
[Date "2020.10.18"]
[Round "3.8"]
[White "Tuomainen, Felix"]
[Black "Dragicevic, Drazen"]
[Result "1/2-1/2"]
[TimeControl "90 minutes for 40 moves + 30 minutes for the rest of the game + 30 seconds per move from move one."]
[WhiteTitle "FM"]
[BlackTitle "FM"]
[WhiteFideId "1720813"]
[BlackFideId "1707922"]
[WhiteElo "2208"]
[BlackElo "2286"]

1. d4 {[%clk 01:30:58]} {[%emt 00:00:01]} d5 {[%clk 01:30:33]} {[%emt
00:00:26]} 2. c4 {[%clk 01:30:57]} {[%emt 00:00:31]} e6 {[%clk 01:30:32]}
{[%emt 00:00:31]} 3. Nc3 {[%clk 01:31:15]} {[%emt 00:00:12]} a6 {[%clk
01:30:55]} {[%emt 00:00:08]} 4. cxd5 {[%clk 01:26:32]} {[%emt 00:05:13]} exd5
{[%clk 01:30:56]} {[%emt 00:00:28]} 5. Bf4 {[%clk 01:26:51]} {[%emt 00:00:11]}
Nf6 {[%clk 01:14:10]} {[%emt 00:17:17]} 6. e3 {[%clk 01:26:59]} {[%emt
00:00:22]} Bf5 {[%clk 01:08:52]} {[%emt 00:05:47]} 7. Bd3 {[%clk 01:23:36]}
{[%emt 00:03:53]} Bxd3 {[%clk 01:00:48]} {[%emt 00:08:35]} 8. Qxd3 {[%clk
01:21:55]} {[%emt 00:02:11]} Bd6 {[%clk 00:51:29]} {[%emt 00:09:48]} 9. Bg3
{[%clk 01:18:49]} {[%emt 00:03:35]} Nc6 {[%clk 00:45:31]} {[%emt 00:06:29]} 10.
Nf3 {[%clk 01:14:16]} {[%emt 00:05:04]} Bxg3 {[%clk 00:44:32]} {[%emt
00:01:28]} 11. hxg3 {[%clk 01:14:37]} {[%emt 00:00:10]} Qe7 {[%clk 00:43:35]}
{[%emt 00:01:27]} 12. Rc1 {[%clk 01:13:00]} {[%emt 00:02:04]} Rd8 {[%clk
00:27:50]} {[%emt 00:16:17]} 13. O-O {[%clk 01:12:42]} {[%emt 00:00:47]} Ne4
{[%clk 00:26:08]} {[%emt 00:02:14]} 14. Na4 {[%clk 01:06:42]} {[%emt 00:06:28]}
Rd6 {[%clk 00:12:54]} {[%emt 00:13:46]} 15. Nc5 {[%clk 01:06:04]} {[%emt
00:01:09]} Nd8 {[%clk 00:13:16]} {[%emt 00:00:07]} 16. Qb3 {[%clk 01:02:11]}
{[%emt 00:04:21]} c6 {[%clk 00:12:53]} {[%emt 00:00:55]} 17. Nxe4 {[%clk
01:01:29]} {[%emt 00:01:12]} Qxe4 {[%clk 00:09:34]} {[%emt 00:03:49]} 18. Ne5
{[%clk 01:00:41]} {[%emt 00:01:17]} h5 {[%clk 00:07:12]} {[%emt 00:02:54]} 19.
Qd3 {[%clk 00:59:56]} {[%emt 00:01:14]} Qxd3 {[%clk 00:01:50]} {[%emt
00:05:52]} 20. Nxd3 {[%clk 01:00:20]} {[%emt 00:00:04]} h4 {[%clk 00:01:50]}
{[%emt 00:00:31]} 21. gxh4 {[%clk 01:00:30]} {[%emt 00:00:20]} Rxh4 {[%clk
00:02:12]} {[%emt 00:00:08]} 22. b4 {[%clk 01:00:26]} {[%emt 00:00:34]} Rdh6
{[%clk 00:02:01]} {[%emt 00:00:40]} 23. f3 {[%clk 01:00:45]} {[%emt 00:00:11]}
g5 {[%clk 00:02:09]} {[%emt 00:00:22]} 24. Ne5 {[%clk 01:00:03]} {[%emt
00:01:12]} f5 {[%clk 00:01:13]} {[%emt 00:01:27]} 25. a4 {[%clk 00:59:01]}
{[%emt 00:01:32]} Nf7 {[%clk 00:00:45]} {[%emt 00:00:58]} 26. Nxf7 {[%clk
00:58:49]} {[%emt 00:00:42]} Kxf7 {[%clk 00:01:13]} {[%emt 00:00:01]} 27. Kf2
{[%clk 00:58:51]} {[%emt 00:00:27]} Ke7 {[%clk 00:00:48]} {[%emt 00:00:56]} 28.
b5 {[%clk 00:58:43]} {[%emt 00:00:38]} axb5 {[%clk 00:00:53]} {[%emt 00:00:25]}
29. axb5 {[%clk 00:59:09]} {[%emt 00:00:05]} Rh2 {[%clk 00:00:42]} {[%emt
00:00:41]} 30. bxc6 {[%clk 00:59:24]} {[%emt 00:00:15]} bxc6 {[%clk 00:01:10]}
{[%emt 00:00:01]} 31. Ra1 {[%clk 00:59:00]} {[%emt 00:00:51]} f4 {[%clk
00:00:52]} {[%emt 00:00:51]} 32. Rfe1 {[%clk 00:58:27]} {[%emt 00:01:04]} fxe3+
{[%clk 00:00:36]} {[%emt 00:00:46]} 33. Rxe3+ {[%clk 00:58:48]} {[%emt
00:00:09]} Kd6 {[%clk 00:01:02]} {[%emt 00:00:04]} 34. Rc1 {[%clk 00:58:09]}
{[%emt 00:01:09]} 1/2-1/2